bitfinex/quotes_ETHUSD_20250413
["timestamp","ask_amount","ask_price","bid_price","bid_amount"]
[1744525229065,0.91378877,1610.1,1610.0,0.30427254]
[1744525230767,7.12457877,1610.1,1610.0,0.30427254]
[1744525230974,8.45808065,1610.1,1610.0,0.30427254]
[1744525231169,9.00808065,1610.1,1610.0,0.30427254]
[1744525231382,15.20808065,1610.1,1610.0,0.30427254]
[1744525231674,15.37055219,1610.1,1610.0,0.30427254]
[1744525231845,6.21119,1610.0,1609.7,6.21229]
[1744525232043,0.28128178,1609.9,1609.7,6.21229]
[1744525232274,0.28128178,1609.9,1609.8,0.30417692]
[1744525232743,0.28128178,1609.9,1609.8,0.84640526]
[1744525233944,8.49738896,1609.9,1609.8,0.84640526]
[1744525234349,8.49738896,1609.9,1609.8,0.30417692]
[1744525234670,6.21205,1609.8,1609.4,13.2045]
[1744525235045,0.2793294,1609.7,1609.5,0.65241869]
[1744525235656,0.2793294,1609.7,1609.5,0.34818502]
[1744525235861,0.2793294,1609.7,1609.4,13.2045]
[1744525236057,6.4918694,1609.7,1609.4,1.32045]
[1744525236265,7.2971694,1609.7,1609.3,6.21375]
[1744525236477,6.2129,1609.6,1609.2,6.2142]
[1744525236782,0.27741577,1609.5,1609.4,0.30402232]
[1744525236980,6.49051577,1609.5,1609.4,0.30402232]
[1744525237153,7.29581577,1609.5,1609.1,13.22685]
[1744525237354,7.29581577,1609.5,1609.2,0.30388455]
[1744525237776,7.29581577,1609.5,1609.1,14.549535]
[1744525237979,7.29581577,1609.5,1609.1,8.334945]
[1744525238452,7.29581577,1609.5,1609.1,14.549375]
[1744525238650,7.29581577,1609.5,1609.2,0.30370605]
[1744525238989,7.29581577,1609.5,1609.1,14.549375]
[1744525239288,7.29581577,1609.5,1609.1,13.771575]
[1744525239486,13.96650204,1609.5,1609.1,7.557115]
[1744525239785,6.21401,1609.3,1609.1,0.02]
[1744525240083,1.10343756,1609.2,1609.1,0.02]
[1744525240272,0.27583756,1609.2,1609.1,7.01185]
[1744525240457,0.27583756,1609.2,1609.1,7.31525586]
[1744525241888,0.27583756,1609.2,1609.1,7.01185]
[1744525243393,0.27583756,1609.2,1609.1,8.334512]
[1744525247058,6.203,1609.6,1609.3,6.21358]
[1744525247264,0.27244954,1609.5,1609.3,12.42729]
[1744525247587,0.27244954,1609.5,1609.2,6.2142]
[1744525247773,1.02734954,1609.5,1609.2,6.2142]
[1744525247973,1.02734954,1609.5,1609.2,7.6690662]
[1744525248493,1.49558703,1609.5,1609.2,7.6690662]
[1744525250264,1.49558703,1609.5,1609.2,7.6689762]
[1744525250464,1.49558703,1609.5,1609.3,6.21365]
[1744525254302,0.27244954,1609.5,1609.3,6.21365]
[1744525254674,0.27244954,1609.5,1609.1,0.7972]
[1744525254675,0.8131,1609.4,1609.1,7.01166]
[1744525255002,0.27183641,1609.3,1609.2,6.21426]
[1744525255203,6.21328,1609.5,1609.2,6.21426]
[1744525255376,0.27214299,1609.4,1609.2,7.536852]
[1744525256506,0.27214299,1609.4,1609.2,13.750982]
[1744525256799,13.22896,1609.6,1609.3,6.21388]
[1744525257005,0.04381476,1717.8,1609.4,0.8214]
[1744525257006,0.27244954,1609.5,1609.4,0.8214]
[1744525257173,6.2109,1610.1,1609.4,9.24246213]
[1744525257502,0.22989527,1610.0,1609.8,6.2119]
[1744525258007,0.22989527,1610.0,1609.7,7.03347]
[1744525258918,0.22989527,1610.0,1609.7,13.24559]
[1744525259102,0.22989527,1610.0,1609.8,6.21169]
[1744525259306,13.22653,1610.2,1609.9,6.832729]
[1744525259505,0.23246373,1610.1,1609.9,6.21156]
[1744525263009,0.23246373,1610.1,1610.0,6.21118]
[1744525263212,6.199,1610.4,1610.0,0.7635]
[1744525263419,0.23350944,1610.3,1610.2,6.21033]
[1744525263707,6.199,1610.4,1610.2,6.21033]
[1744525263900,0.23350944,1610.3,1610.2,6.21033]
[1744525264079,6.199,1610.4,1610.2,6.21033]
[1744525264417,0.21978264,1610.3,1610.1,12.42156]
[1744525264603,6.199,1610.4,1610.1,13.740066]
[1744525264804,0.21978264,1610.3,1610.1,13.740066]
[1744525265183,0.2194764,1610.2,1610.1,13.740066]
[1744525265384,6.199,1610.4,1610.1,13.740066]
[1744525265584,0.21978264,1610.3,1610.0,6.97462]
[1744525265811,0.21978264,1610.3,1609.9,6.21155]
[1744525265812,0.7534,1610.2,1609.9,6.21155]
[1744525266008,0.7534,1610.2,1609.9,12.42298]
[1744525266192,0.21917013,1610.1,1610.0,6.21118]
[1744525266595,19.37224,1610.4,1610.0,6.21118]
[1744525266916,0.21978264,1610.3,1610.0,6.21118]
[1744525267121,0.21978264,1610.3,1610.0,7.453441]
[1744525267295,13.16226,1610.4,1610.0,7.453441]
[1744525267497,0.21978264,1610.3,1610.0,7.453441]
[1744525267695,13.16226,1610.4,1610.0,7.453441]
[1744525267895,0.21978264,1610.3,1610.1,0.7971]
[1744525268094,6.199,1610.4,1610.1,7.00773]
[1744525268289,0.21978264,1610.3,1610.1,7.00773]
[1744525268514,6.199,1610.4,1610.1,8.329617]
[1744525268716,0.21920515,1610.2,1610.1,8.329617]
[1744525268933,6.199,1610.4,1610.1,8.329617]
[1744525269097,0.21920515,1610.2,1610.1,8.329617]
[1744525269409,0.21920515,1610.2,1610.1,1.321887]
[1744525269617,0.21920515,1610.2,1610.0,6.21102]
[1744525269814,6.199,1610.4,1610.2,13.24097]
[1744525270313,60.2494,1610.7,1610.4,6.20963]
[1744525270610,59.491,1610.7,1610.4,7.03003]
[1744525271519,65.6996,1610.7,1610.4,7.03003]
[1744525273714,68.75456022,1610.7,1610.3,6.20996]
[1744525273932,0.7584,1610.6,1610.3,6.20996]
[1744525274116,0.7584,1610.6,1610.1,7.03136]
[1744525274319,6.20981,1610.4,1610.1,0.8206]
[1744525274508,6.96866,1610.3,1609.9,7.03216]
[1744525274703,6.21079,1610.1,1609.8,6.21192]
[1744525275094,0.21978581,1610.0,1609.8,6.21192]
[1744525275699,0.21978581,1610.0,1609.6,8.40457213]
[1744525275700,0.97818581,1610.0,1609.6,0.8206]
[1744525275899,6.2117,1609.9,1609.5,6.21295]
[1744525276105,6.43044773,1609.8,1609.5,6.21295]
[1744525276334,6.43044773,1609.8,1609.4,7.03404]
[1744525276533,6.43044773,1609.8,1609.4,8.978529]
[1744525277829,0.21846773,1609.8,1609.4,2.765089]
[1744525278130,0.21846773,1609.8,1609.4,0.8206]
[1744525278432,0.21846773,1609.8,1609.5,6.21287]
[1744525278901,0.21846773,1609.8,1609.4,13.24742]
[1744525279105,6.43056773,1609.8,1609.4,13.24742]
[1744525280430,0.21846773,1609.8,1609.4,0.8206]
[1744525280595,0.21846773,1609.8,1609.7,6.98843]
[1744525280793,13.16561,1610.2,1609.7,8.308529]
[1744525280994,0.21933251,1610.1,1609.8,12.42324]
[1744525281731,0.21933251,1610.1,1609.8,6.21161]
[1744525281928,6.21138,1610.0,1609.6,6.2126]
[1744525282134,6.43017251,1610.1,1609.7,6.2122]
[1744525282436,6.21084,1610.1,1609.7,6.2122]
[1744525282634,0.21848354,1610.0,1609.7,6.2122]
[1744525282855,0.21848354,1610.0,1609.7,7.454671]
[1744525283203,0.21848354,1610.0,1609.8,6.98799]
[1744525283421,6.9552,1610.2,1609.9,6.21156]
[1744525283625,0.21862703,1610.1,1609.9,6.21156]
[1744525284736,0.21862703,1610.1,1609.8,13.19981]
[1744525285035,0.21862703,1610.1,1609.8,14.6440381]
[1744525286818,0.21862703,1610.1,1609.8,8.4321481]
[1744525287745,0.21862703,1610.1,1609.8,14.6439081]
[1744525289141,0.21862703,1610.1,1609.9,6.21151]
[1744525289513,0.21862703,1610.1,1609.9,12.42287]
[1744525289944,0.21862703,1610.1,1609.9,7.531257]
[1744525290444,0.21862703,1610.1,1609.9,6.21136]
[1744525293459,0.21862703,1610.1,1609.7,6.21232]
[1744525293660,0.21862703,1610.1,1609.6,6.2126]
[1744525293830,6.21155,1610.0,1609.6,12.42513]
[1744525294031,0.19734856,1609.9,1609.6,12.42513]
[1744525294355,0.19734856,1609.9,1609.7,1.4365796]
[1744525295160,0.19734856,1609.9,1609.7,1.242513]
[1744525295860,0.19734856,1609.9,1609.7,7.454623]
[1744525296017,13.16567,1610.2,1609.8,12.72776549]
[1744525296213,0.19796122,1610.1,1609.8,12.72776549]
[1744525296667,0.19796122,1610.1,1609.8,12.4239]
[1744525297624,0.19796122,1610.1,1609.8,6.21195]
[1744525298577,6.2112,1610.0,1609.7,6.21228]
[1744525299081,0.19724891,1609.9,1609.7,12.42442]
[1744525299261,6.2109,1610.1,1609.7,13.666862]
[1744525299442,0.19755526,1610.0,1609.9,6.21142]
[1744525299636,6.9552,1610.2,1609.9,6.21142]
[1744525299836,0.19786158,1610.1,1609.9,6.21142]
[1744525300565,0.19786158,1610.1,1609.7,6.21212]
[1744525300771,7.02903,1610.0,1609.6,13.19976]
[1744525301076,0.19724891,1609.9,1609.6,14.519736]
[1744525301278,0.19724891,1609.9,1609.7,0.30398326]
[1744525301466,0.19724891,1609.9,1609.6,14.519736]
[1744525301667,0.19724891,1609.9,1609.7,0.19407183]
[1744525302472,0.19724891,1609.9,1609.7,6.40625183]
[1744525302762,0.19724891,1609.9,1609.8,0.19407183]
[1744525303062,0.19724891,1609.9,1609.8,6.71025589]
[1744525303435,0.8177,1610.1,1609.8,6.71025589]
[1744525303637,0.19755526,1610.0,1609.9,0.30423406]
[1744525305754,0.19755526,1610.0,1609.8,6.21195]
[1744525306584,0.19755526,1610.0,1609.9,0.30453121]
[1744525311402,0.19755526,1610.0,1609.9,0.49859472]
[1744525315489,0.19755526,1610.0,1609.9,6.71015472]
[1744525315792,6.195,1610.4,1610.1,6.21061]
[1744525315959,6.195,1610.4,1610.1,12.42121]
[1744525316159,12.40488,1610.4,1610.2,0.30453121]
[1744525316382,19.930678,1610.4,1610.2,0.30453121]
[1744525316654,19.930678,1610.4,1610.0,12.42211]
[1744525316881,18.61482,1610.4,1610.0,12.42211]
[1744525317083,12.40488,1610.4,1610.1,0.30478922]
[1744525317897,12.40488,1610.4,1610.2,0.30478922]
[1744525318074,12.40488,1610.4,1610.0,12.42211]
[1744525318398,12.40488,1610.4,1610.1,0.30467786]
[1744525318759,12.40488,1610.4,1610.2,0.30467786]
[1744525319393,6.195,1610.4,1610.1,6.21059]
[1744525319584,6.195,1610.4,1610.1,13.042239]
[1744525320095,0.18343982,1610.3,1610.2,0.30466799]
[1744525320392,6.195,1610.4,1610.2,0.30466799]
[1744525320592,0.18343982,1610.3,1610.2,0.30466799]
[1744525320957,6.195,1610.4,1610.2,0.30466799]
[1744525321156,0.18343982,1610.3,1610.2,0.30466799]
[1744525321586,6.195,1610.4,1610.2,0.30466799]
[1744525321796,0.18343982,1610.3,1610.1,13.042279]
[1744525322099,6.195,1610.4,1610.1,13.042279]
[1744525322294,0.18343982,1610.3,1610.1,13.042279]
[1744525322596,12.40465,1610.4,1610.2,0.30457469]
[1744525322794,6.195,1610.4,1610.2,1.06037469]
[1744525322980,6.20891,1610.6,1610.3,6.21002]
[1744525323185,66.48358,1610.7,1610.3,6.20989]
[1744525323795,0.7911,1610.9,1610.5,0.7558]
[1744525324110,6.2066,1611.2,1610.9,6.20765]
[1744525324859,6.9985,1611.3,1611.1,6.20693]
[1744525325172,59.47884,1611.4,1611.1,6.20693]
[1744525325367,59.464,1611.4,1611.1,13.22666]
[1744525325894,59.464,1611.4,1611.1,7.01973]
[1744525326296,6.191,1611.6,1611.3,6.20604]
[1744525327664,6.191,1611.6,1611.3,12.41197]
[1744525327999,6.191,1611.6,1611.3,13.22477]
[1744525328186,6.191,1611.6,1611.3,7.01873]
[1744525328386,5.75757213,1611.9,1611.5,6.20539]
[1744525328387,6.20392,1611.9,1611.5,6.20539]
[1744525328695,6.20288,1612.2,1611.8,6.20406]
[1744525329276,13.19982,1612.3,1611.8,6.20406]
[1744525329463,13.19982,1612.3,1611.7,0.8128]
[1744525329464,6.204,1611.9,1611.7,0.8128]
[1744525329666,6.204,1611.9,1611.5,0.7923]
[1744525329667,6.20424,1611.8,1611.5,0.7923]
[1744525330000,6.20428,1611.8,1611.5,0.7923]
[1744525331077,6.738,1611.9,1611.3,6.99846]
[1744525331302,6.97598,1611.7,1611.3,0.7923]
[1744525331499,6.20515,1611.6,1611.3,0.7923]
[1744525331683,6.20543,1611.5,1611.3,0.7923]
[1744525331884,0.17446331,1611.4,1611.3,0.7923]
[1744525332110,6.20457,1611.8,1611.3,6.99846]
[1744525332370,6.38011053,1611.7,1611.3,7.698306]
[1744525333098,6.38011053,1611.7,1611.3,1.492146]
[1744525333301,6.20524,1611.6,1611.3,0.7923]
[1744525333604,6.3797745,1611.5,1611.1,13.20597]
[1744525333772,12.5854545,1611.5,1611.1,6.99904]
[1744525333973,0.1742245,1611.5,1611.2,6.2065]
[1744525334174,0.1742245,1611.5,1611.3,6.20607]
[1744525334377,0.1742245,1611.5,1611.4,6.97768]
[1744525334575,6.20467,1611.7,1611.4,0.7719]
[1744525334900,6.20502,1611.6,1611.2,6.97842]
[1744525335111,0.1742245,1611.5,1611.2,6.97842]
[1744525335874,6.20579,1611.4,1611.1,7.74827921]
[1744525336075,0.17361291,1611.3,1611.0,6.9792]
[1744525336310,6.20579,1611.4,1611.0,6.97905]
[1744525336523,0.17328612,1611.3,1611.0,6.97905]
[1744525336708,6.20579,1611.4,1611.0,6.97905]
[1744525336881,0.17328612,1611.3,1611.0,8.297723]
[1744525337077,6.20621,1611.3,1610.9,6.20768]
[1744525337404,6.20621,1611.3,1610.8,14.60261213]
[1744525337405,6.20707,1611.1,1610.8,0.7719]
[1744525337583,6.37960027,1611.2,1610.9,6.20768]
[1744525337788,0.17133347,1611.0,1610.9,6.97958]
[1744525338107,6.20556,1611.5,1611.1,6.20684]
[1744525338313,12.41118,1611.5,1611.1,7.448253]
[1744525339403,6.20556,1611.5,1611.1,7.448253]
[1744525340299,12.41118,1611.5,1611.1,7.448253]
[1744525341535,6.20617,1611.3,1610.9,6.97955]
[1744525341705,12.41257,1611.3,1610.9,6.97955]
[1744525342018,6.2072,1611.1,1610.7,6.98583]
[1744525342313,6.2066,1611.2,1610.8,6.20773]
[1744525342516,12.3932,1611.3,1610.9,6.20757]
[1744525342719,12.3932,1611.3,1610.9,7.449136]
[1744525343189,18.59966,1611.3,1610.9,7.449136]
[1744525343913,6.20656,1611.2,1610.9,7.449136]
[1744525346417,6.187,1611.3,1611.0,0.7709]
[1744525346715,6.187,1611.3,1611.1,6.20691]
[1744525347017,15.4113,1611.5,1611.1,7.525419]
[1744525347212,12.4113,1611.5,1611.1,7.525419]
[1744525347414,6.2058,1611.4,1611.1,7.525419]
[1744525348132,6.20658,1611.2,1610.9,6.20768]
[1744525348431,6.20658,1611.2,1610.7,6.20827]
[1744525348432,6.20745,1611.0,1610.7,6.20827]
[1744525348631,6.75693,1611.1,1610.6,0.7709]
[1744525348832,6.20823,1610.8,1610.4,12.4187]
[1744525349047,6.20823,1610.8,1610.4,9.18775213]
[1744525349330,6.20823,1610.8,1610.4,6.98018]
[1744525350230,0.16587343,1610.7,1610.4,6.98018]
[1744525350448,6.37438343,1610.7,1610.4,0.7709]
[1744525350738,6.20894,1610.6,1610.2,6.98104]
[1744525351031,0.1647656,1610.5,1610.4,6.98053]
[1744525351327,6.184,1610.8,1610.5,6.20896]
[1744525351508,0.16537788,1610.7,1610.6,6.20863]
[1744525351710,0.16537788,1610.7,1610.6,7.450418]
[1744525351912,0.16537788,1610.7,1610.6,1.241788]
[1744525356442,0.16537788,1610.7,1610.5,6.20925]
[1744525359447,0.16537788,1610.7,1610.5,12.41834]
[1744525359743,0.16537788,1610.7,1610.5,6.20909]
[1744525361611,0.16537788,1610.7,1610.6,6.20886]
[1744525361816,0.16537788,1610.7,1610.6,6.5120159]
[1744525362019,0.7532,1611.0,1610.7,6.20848]
[1744525362346,0.16185582,1610.9,1610.7,6.20848]
[1744525362545,0.16185582,1610.9,1610.6,8.10187759]
[1744525363847,12.57778582,1610.9,1610.6,1.89301759]
[1744525364066,6.36970582,1610.9,1610.5,6.20922]
[1744525365444,6.20815,1610.8,1610.5,6.20922]
[1744525365744,0.16124371,1610.7,1610.5,6.20922]
[1744525365927,0.16124371,1610.7,1610.6,0.30349092]
[1744525366126,7.20012371,1610.7,1610.6,0.30349092]
[1744525366321,8.54095108,1610.7,1610.3,6.20999]
[1744525366522,13.40892371,1610.7,1610.4,0.30360036]
[1744525366723,13.40892371,1610.7,1610.3,6.20999]
[1744525367555,0.99164371,1610.7,1610.4,6.51307704]
[1744525367957,0.99164371,1610.7,1610.4,6.20947]
[1744525368120,7.20014371,1610.7,1610.4,6.20947]
[1744525368522,7.20014371,1610.7,1610.4,7.451419]
[1744525369036,7.20014371,1610.7,1610.5,0.30361794]
[1744525369233,0.16124371,1610.7,1610.5,7.29503794]
[1744525369635,12.41575,1610.9,1610.5,7.29503794]
[1744525369837,0.16061046,1610.6,1610.5,6.99142]
[1744525370069,6.20812,1610.8,1610.5,8.62968387]
[1744525370249,0.16061046,1610.6,1610.5,8.62968387]
[1744525370453,6.20812,1610.8,1610.5,8.62968387]
[1744525370957,0.16091658,1610.7,1610.5,8.4357129]
[1744525371756,0.16091658,1610.7,1610.6,0.30384405]
[1744525372263,0.16091658,1610.7,1610.5,1.4442929]
[1744525373356,0.16091658,1610.7,1610.5,7.6534729]
[1744525375180,0.16091658,1610.7,1610.6,0.30395248]
[1744525378379,0.16091658,1610.7,1610.6,0.49792479]
[1744525379576,6.20776,1610.9,1610.6,8.14283456]
[1744525379740,0.16149524,1610.8,1610.6,8.14283456]
[1744525379936,0.16149524,1610.8,1610.7,6.20848]
[1744525380181,6.185,1611.1,1610.8,6.20771]
[1744525380383,0.16248888,1611.0,1610.9,0.7849]
[1744525380540,0.16248888,1611.0,1610.9,2.40889448]
[1744525380964,0.16248888,1611.0,1610.9,0.30395248]
[1744525381370,0.16248888,1611.0,1610.9,0.49792479]
[1744525382234,7.18910888,1611.0,1610.9,0.49792479]
[1744525382476,7.18910888,1611.0,1610.9,0.19397231]
[1744525382838,6.20772,1610.9,1610.7,0.30425305]
[1744525383276,0.16269447,1610.8,1610.6,6.20885]
[1744525383471,0.16269447,1610.8,1610.7,0.34819041]
[1744525383779,0.16269447,1610.8,1610.7,0.65234894]
[1744525383944,7.02662,1611.0,1610.7,0.84630277]
[1744525384274,0.16300051,1610.9,1610.8,0.30415853]
[1744525385174,0.16300051,1610.9,1610.8,1.05805853]
[1744525385543,12.39199,1611.1,1610.8,1.05805853]
[1744525385749,0.16330651,1611.0,1610.8,0.7539]
[1744525385949,0.16330651,1611.0,1610.7,13.17068]
[1744525386289,0.16330651,1611.0,1610.7,6.96221]
[1744525386755,0.16330651,1611.0,1610.8,6.70595599]
[1744525387168,0.16330651,1611.0,1610.9,0.3040486]
[1744525388906,0.16330651,1611.0,1610.9,7.98534246]
[1744525389148,0.16330651,1611.0,1610.9,8.17925847]
[1744525389269,60.2591,1611.5,1611.2,6.2063]
[1744525389469,13.22169,1611.5,1611.1,7.02929]
[1744525389777,6.20616,1611.3,1611.2,0.3040486]
[1744525389977,6.826776,1611.3,1611.2,0.3040486]
[1744525390357,6.826776,1611.3,1610.9,7.02991]
[1744525390558,6.20616,1611.3,1610.9,7.02991]
[1744525390761,6.20616,1611.3,1611.0,6.20729]
[1744525391797,0.8331,1611.2,1610.8,6.20806]
[1744525392001,0.8331,1611.2,1610.5,6.20908]
[1744525392002,6.20787,1610.9,1610.5,6.20908]
[1744525392170,6.20812,1610.8,1610.5,6.20908]
[1744525392369,6.20812,1610.8,1610.6,0.30394841]
[1744525392790,6.20812,1610.8,1610.5,6.20908]
[1744525393498,0.8331,1610.7,1610.5,6.20908]
[1744525393811,0.8331,1610.7,1610.4,7.451259]
[1744525394296,0.8331,1610.7,1610.5,0.3039673]
[1744525394501,0.8331,1610.7,1610.5,0.49794523]
[1744525394700,0.8331,1610.7,1610.5,0.19397793]
[1744525395290,0.8331,1610.7,1610.6,0.30397556]
[1744525395675,0.8331,1610.7,1610.4,13.660699]
[1744525396002,1.537222,1610.7,1610.5,0.30401987]
[1744525396169,7.0416,1610.7,1610.2,6.2104]
[1744525396371,7.0416,1610.7,1610.3,6.55764075]
[1744525396773,7.0416,1610.7,1610.4,0.19398631]
[1744525397107,7.0416,1610.7,1610.4,0.4979433]
[1744525397308,0.7953,1611.7,1611.4,6.20545]
[1744525397511,0.7953,1611.7,1611.4,12.41102]
[1744525398077,0.7953,1611.7,1611.5,6.50905699]
[1744525398276,6.20427,1611.8,1611.5,0.30395699]
[1744525398478,0.7953,1611.6,1611.3,6.20616]
[1744525398803,1.495296,1611.6,1611.3,6.20616]
[1744525399167,1.495296,1611.6,1611.3,12.41216]
[1744525399564,0.7953,1611.6,1611.4,6.20578]
[1744525399769,0.778,1612.0,1611.4,0.7627]
[1744525399978,3.778,1612.0,1611.7,6.20458]
[1744525400312,0.778,1612.0,1611.7,6.20458]
[1744525400873,3.778,1612.0,1611.7,6.20458]
[1744525401073,4.776111,1612.0,1611.7,6.20458]
[1744525401319,4.776111,1612.0,1611.7,12.40902]
[1744525401513,4.776111,1612.0,1611.7,6.20444]
[1744525401719,1.776111,1612.0,1611.7,6.20444]
[1744525402075,7.979761,1612.0,1611.6,6.20499]
[1744525402270,0.7979761,1611.9,1611.6,6.20499]
[1744525402476,7.0019861,1611.9,1611.4,6.96844]
[1744525402687,7.0019861,1611.9,1611.4,13.17398]
[1744525402892,7.0019861,1611.9,1611.5,6.20534]
[1744525403612,13.2061461,1611.9,1611.5,6.20534]
[1744525404423,6.20425,1611.8,1611.4,6.96824]
[1744525404597,0.8284,1611.7,1611.4,13.1738]
[1744525404791,0.8284,1611.7,1611.4,8.28562]
[1744525404997,0.8284,1611.7,1611.4,6.20554]
[1744525405528,7.03313,1611.7,1611.3,6.20615]
[1744525406225,0.8284,1611.7,1611.4,6.20576]
[1744525407139,0.8284,1612.1,1611.7,6.20447]
[1744525407440,0.8284,1612.1,1611.7,6.20438]
[1744525407583,7.03165,1612.1,1611.7,6.20438]
[1744525408101,8.35511,1612.1,1611.7,6.20438]
[1744525408291,5.15186,1612.1,1611.7,12.4088]
[1744525408492,11.355,1612.1,1611.7,6.20438]
[1744525410128,5.15186,1612.1,1611.8,6.2042]
[1744525410335,0.14425742,1612.0,1611.8,6.2042]
[1744525410483,0.14425742,1612.0,1611.7,6.20438]
[1744525410894,6.34789742,1612.0,1611.6,6.2049]
[1744525411099,6.99387,1611.9,1611.4,6.20574]
[1744525411310,6.20424,1611.8,1611.4,6.20574]
[1744525411621,12.5523962,1611.8,1611.4,6.20574]
[1744525412128,0.1436462,1611.8,1611.3,0.8325]
[1744525412333,0.1436462,1611.8,1611.6,6.20483]
[1744525412488,0.1436462,1611.8,1611.7,6.20462]
[1744525412688,3.7897,1611.9,1611.7,6.20462]
[1744525412930,0.1436462,1611.8,1611.7,6.20462]
[1744525413292,3.7897,1611.9,1611.7,6.20462]
[1744525413488,0.1436462,1611.8,1611.7,6.20462]
[1744525413694,0.1436462,1611.8,1611.7,7.445565]
[1744525414236,7.0227,1612.0,1611.7,7.445565]
[1744525414433,0.14395183,1611.9,1611.7,6.20462]
[1744525416039,0.14395183,1611.9,1611.7,12.40906]
[1744525416715,0.14395183,1611.9,1611.7,6.20444]
[1744525419168,0.14395183,1611.9,1611.8,6.20424]
[1744525419373,0.14395183,1611.9,1611.8,6.95584]
[1744525419535,54.0061,1612.3,1612.0,6.20315]
[1744525420174,54.0061,1612.3,1612.0,12.4064]
[1744525421161,54.0061,1612.3,1612.0,6.20315]
[1744525421365,60.20862,1612.3,1611.9,6.20383]
[1744525422177,60.20862,1612.3,1611.9,12.40749]
[1744525423180,6.96062,1612.3,1611.9,12.40749]
[1744525424979,13.1632,1612.3,1611.9,6.20366]
[1744525425145,0.14874776,1612.2,1611.9,6.20366]
[1744525425855,0.14874776,1612.2,1611.9,7.67328652]
[1744525426885,0.14874776,1612.2,1611.9,13.87694652]
[1744525427178,0.14874776,1612.2,1611.9,7.67328652]
[1744525428272,0.14874776,1612.2,1611.9,13.87696652]
[1744525428680,6.35157776,1612.2,1611.9,1.46962652]
[1744525428853,6.35157776,1612.2,1611.8,6.95565]
[1744525429052,6.35157776,1612.2,1611.8,13.15971]
[1744525429699,12.55447776,1612.2,1611.8,6.95565]
[1744525429867,12.55450776,1612.2,1611.8,13.1597]
[1744525430067,12.55450776,1612.2,1611.8,6.95565]
[1744525430068,13.88576854,1612.2,1611.8,6.95565]
[1744525432405,4.3772,1612.1,1611.6,0.7815]
[1744525432615,7.03186,1611.7,1611.3,6.98763]
[1744525432910,12.55923196,1611.6,1611.2,7.0093]
[1744525433079,6.35390196,1611.6,1611.3,0.19388007]
[1744525433279,6.35390196,1611.6,1611.3,0.91419808]
[1744525434271,6.35390196,1611.6,1611.3,0.72031801]
[1744525435161,6.20547,1611.5,1611.2,7.00916]
[1744525435506,0.14805044,1611.4,1611.2,7.00916]
[1744525435697,0.14805044,1611.4,1611.3,6.20616]
[1744525435998,0.14805044,1611.4,1611.3,7.32923389]
[1744525436204,0.7675,1611.8,1611.4,6.2054]
[1744525436404,6.97174,1611.8,1611.4,6.2054]
[1744525436563,6.97174,1611.8,1611.4,12.41105]
[1744525436769,6.97174,1611.8,1611.4,6.2054]
[1744525437991,6.97174,1611.8,1611.4,12.41105]
[1744525438607,6.97174,1611.8,1611.4,6.2054]
[1744525438775,7.44234245,1611.8,1611.4,6.2054]
[1744525438975,7.44234245,1611.8,1611.4,12.41098]
[1744525440106,0.14694646,1611.7,1611.4,12.41098]
[1744525440312,0.14694646,1611.7,1611.4,13.729658]
[1744525440609,0.14694646,1611.7,1611.5,6.20535]
[1744525443886,0.14694646,1611.7,1611.6,6.20501]
[1744525444102,6.231,1612.0,1611.7,6.20441]
[1744525445232,12.43453,1612.0,1611.7,6.20441]
[1744525446028,6.231,1612.0,1611.6,0.8119]
[1744525446324,6.20445,1611.8,1611.4,13.22324]
[1744525446529,12.40893,1611.8,1611.4,7.01754]
[1744525446732,6.20491,1611.7,1611.4,0.8119]
[1744525447025,6.20491,1611.7,1611.3,12.41208]
[1744525447224,7.03465,1611.6,1611.2,7.01833]
[1744525447429,13.23989,1611.6,1611.2,6.20643]
[1744525447730,7.03465,1611.6,1611.2,12.41278]
[1744525449638,7.03465,1611.6,1611.2,6.20635]
[1744525449996,6.20568,1611.5,1611.1,7.01883]
[1744525450231,7.656008,1611.4,1611.0,12.41447]
[1744525450436,7.03544,1611.4,1611.0,12.41447]
[1744525450599,7.03544,1611.4,1611.1,6.20689]
[1744525451503,0.8295,1611.4,1611.1,6.20689]
[1744525451840,0.8295,1611.5,1610.9,6.20761]
[1744525452025,0.8295,1611.5,1611.2,6.20634]
[1744525452335,0.8295,1611.5,1611.2,7.447667]
[1744525453138,0.14067267,1611.4,1611.2,7.447667]
[1744525454335,0.14067267,1611.4,1611.1,6.20693]
[1744525455244,0.14067267,1611.4,1610.6,62.45665]
[1744525455245,0.14067267,1611.4,1610.9,7.03495]
[1744525455425,13.19112,1611.3,1610.9,7.03484]
[1744525455623,0.14033425,1611.2,1610.9,7.03484]
[1744525456343,12.55384425,1611.2,1610.8,6.20805]
[1744525456549,12.55384425,1611.2,1610.8,8.152027]
[1744525457046,6.98529,1611.1,1610.7,6.20833]
[1744525457218,6.98529,1611.1,1610.8,7.03525]
[1744525457416,0.13802776,1611.0,1610.8,7.03518]
[1744525457934,0.13802776,1611.0,1610.9,6.2077]
[1744525458444,0.13802776,1611.0,1610.8,7.03518]
[1744525458743,0.13802776,1611.0,1610.8,8.359539]
[1744525458946,0.13802776,1611.0,1610.8,14.567469]
[1744525459118,0.13802776,1611.0,1610.9,6.2077]
[1744525459541,6.196,1611.2,1611.0,6.20715]
[1744525459741,6.196,1611.2,1611.0,12.41431]
[1744525460054,6.196,1611.2,1611.0,13.68605185]
[1744525460360,6.196,1611.2,1611.0,7.47889185]
[1744525460573,12.40272,1611.2,1611.0,1.27174185]
[1744525460853,12.40272,1611.2,1610.8,14.567479]
[1744525462454,12.40272,1611.2,1610.9,6.20768]
[1744525462755,12.40272,1611.2,1610.9,6.51099886]
[1744525463053,19.06550347,1611.2,1610.9,0.30331886]
[1744525463362,0.8157,1611.1,1610.8,6.20791]
[1744525463519,7.02265,1611.1,1610.8,6.20791]
[1744525463859,13.22981,1611.1,1610.7,6.20841]
[1744525466067,6.20732,1611.0,1610.7,6.20841]